bitfinex/quotes_ETHUSD_20250703
["timestamp","ask_amount","ask_price","bid_price","bid_amount"]
[1751535422625,0.02,2604.6,2604.5,17.03870629]
[1751535423345,0.02,2604.6,2604.5,24.87970629]
[1751535423503,0.02,2604.6,2604.5,27.16686102]
[1751535423704,0.01,2605.5,2605.1,3.83860235]
[1751535423909,0.01,2605.5,2605.2,15.78005695]
[1751535424111,0.01,2605.5,2605.4,0.1912]
[1751535424308,0.01,2605.5,2605.4,0.22958182]
[1751535425020,0.01,2605.5,2605.4,0.1912]
[1751535426620,0.01,2605.5,2605.4,0.22958182]
[1751535427118,0.01,2605.5,2605.4,0.1912]
[1751535427318,0.01,2605.5,2605.4,1.23748305]
[1751535428444,0.01,2605.5,2605.4,1.27586487]
[1751535428748,0.01,2605.5,2605.4,2.03526487]
[1751535432050,0.01,2605.5,2605.4,1.99688305]
[1751535432819,0.01,2605.5,2605.4,2.03526487]
[1751535433228,0.01,2605.5,2605.4,5.8734471]
[1751535433447,0.01,2605.5,2605.4,16.38506528]
[1751535434757,0.01,2605.5,2605.4,12.54688305]
[1751535434920,0.01,2605.5,2605.4,16.38506528]
[1751535435336,0.01,2605.5,2605.4,18.65907212]
[1751535436435,0.01,2605.5,2605.4,16.38506528]
[1751535437371,0.01,2605.5,2605.4,24.22206528]
[1751535439644,0.01,2605.5,2605.4,26.14406528]
[1751535441060,0.01,2605.5,2605.4,12.54688305]
[1751535441260,0.01,2605.5,2605.4,33.22103747]
[1751535441771,0.01,2605.5,2605.4,29.38285524]
[1751535441928,0.01,2605.5,2605.4,12.54688305]
[1751535442130,0.01,2605.5,2605.4,0.1912]
[1751535442383,0.01,2605.5,2605.4,8.0272]
[1751535442660,0.01,2605.5,2605.4,0.1912]
[1751535442958,0.01,2605.5,2605.4,8.0262]
[1751535446742,0.01,2605.5,2605.4,18.5762]
[1751535446944,0.02,2605.7,2605.5,0.55]
[1751535447148,0.2686,2606.6,2605.9,10.91431817]
[1751535447343,0.2686,2606.6,2606.0,7.835]
[1751535447546,0.2686,2606.6,2606.4,0.1912]
[1751535447745,0.2686,2606.6,2606.5,7.835]
[1751535451449,0.01,2606.6,2606.5,7.835]
[1751535451673,0.01,2606.6,2606.5,8.63762]
[1751535452862,0.01,2606.6,2606.5,8.82882]
[1751535453749,0.01,2606.6,2606.5,18.82882]
[1751535455684,0.01,2606.6,2606.5,25.96358244]
[1751535455981,0.01,2606.6,2606.5,25.96158244]
[1751535456279,0.01,2606.6,2606.5,16.20558244]
[1751535456486,0.01,2606.6,2606.5,25.96158244]
[1751535457587,0.01,2606.6,2606.5,26.2434784]
[1751535460889,0.01,2606.6,2606.5,16.2434784]
[1751535461785,0.01,2606.6,2606.5,26.2434784]
[1751535461979,0.01,2606.6,2606.5,28.51748524]
[1751535464272,0.01,2606.6,2606.5,18.76148524]
[1751535464474,0.01,2606.6,2606.5,28.51348524]
[1751535466200,0.01,2606.6,2606.5,30.9594784]
[1751535466400,0.01,2606.6,2606.5,33.2277311]
[1751535466802,0.01,2607.7,2607.3,3.83536877]
[1751535467003,0.01,2607.7,2607.4,12.08711422]
[1751535467204,0.01,2607.7,2607.6,0.1912]
[1751535467507,0.01,2607.7,2607.6,8.05954944]
[1751535467732,0.01,2607.7,2607.6,8.0212]
[1751535469771,0.01,2607.7,2607.6,0.1912]
[1751535470081,7.3356388,2607.7,2607.6,8.0202]
[1751535470771,0.2686,2607.7,2607.6,8.0202]
[1751535471405,0.01,2607.7,2607.6,8.0202]
[1751535473407,0.01,2607.7,2607.6,0.1912]
[1751535473704,0.01,2607.7,2607.6,8.0192]
[1751535473705,0.2686,2607.7,2607.6,8.0192]
[1751535474276,0.2686,2607.7,2607.6,0.1912]
[1751535474473,0.2686,2607.7,2607.6,8.0192]
[1751535477315,0.2686,2607.7,2607.6,0.1912]
[1751535477515,0.2686,2607.7,2607.6,8.0192]
[1751535477911,0.2686,2607.7,2607.6,0.1912]
[1751535478105,0.2686,2607.7,2607.6,8.0192]
[1751535479515,0.01,2607.7,2607.6,8.82112]
[1751535480005,0.2686,2607.7,2607.6,8.0182]
[1751535481508,0.01,2607.7,2607.6,8.0182]
[1751535489716,0.01,2607.7,2607.6,11.853144]
[1751535490747,0.01,2607.7,2607.6,12.403144]
[1751535491535,0.01,2607.7,2607.6,23.224244]
[1751535491714,0.01,2608.4,2608.2,3.83393665]
[1751535491915,0.01,2608.4,2608.3,23.06935395]
[1751535492117,0.01,2608.4,2608.3,23.22221481]
[1751535492899,0.01,2608.4,2608.3,21.59421655]
[1751535493125,0.01,2608.4,2608.3,21.04421655]
[1751535493306,0.01,2608.4,2608.3,23.5320497]
[1751535493640,0.01,2609.5,2609.0,1.3122]
[1751535493824,0.01,2609.5,2609.2,10.55]
[1751535494025,0.01,2609.5,2609.3,11.65735496]
[1751535494229,0.01,2609.5,2609.4,1.2207355]
[1751535495011,0.01,2609.5,2609.4,1.25905848]
[1751535495751,0.01,2609.5,2609.4,12.56755848]
[1751535496058,0.01,2609.5,2609.4,16.36153411]
[1751535496346,0.01,2609.5,2609.4,12.5292355]
[1751535497246,0.225783,2610.6,2609.7,4.38171974]
[1751535497407,0.225783,2610.6,2609.9,0.55]
[1751535497607,0.225783,2610.6,2610.0,7.86331417]
[1751535497843,0.225783,2610.6,2610.2,0.8164]
[1751535498008,0.225783,2610.6,2610.3,7.826]
[1751535498210,0.225783,2610.6,2610.4,0.0383083]
[1751535498416,0.225783,2610.6,2610.4,7.826]
[1751535498619,0.225783,2610.6,2610.4,8.69024]
[1751535499141,0.225783,2610.6,2610.5,7.841]
[1751535501568,0.484383,2610.6,2610.5,7.837]
[1751535502565,0.484383,2610.6,2610.5,7.836]
[1751535503359,0.225783,2610.6,2610.5,8.6196]
[1751535503527,0.225783,2610.6,2610.5,9.5675]
[1751535504754,0.225783,2610.6,2610.5,0.9748]
[1751535504974,0.225783,2610.6,2610.5,0.1912]
[1751535505134,0.225783,2610.6,2610.4,7.837]
[1751535505461,0.225783,2610.6,2610.4,8.0282]
[1751535505846,0.225783,2610.6,2610.4,0.1912]
[1751535506046,0.225783,2610.6,2610.5,7.837]
[1751535506226,0.225783,2610.6,2610.4,8.0292]
[1751535506559,0.225783,2610.6,2610.4,0.1912]
[1751535506725,0.225783,2610.6,2610.4,8.0292]
[1751535506919,0.225783,2610.6,2610.5,0.03830683]
[1751535508055,0.225783,2610.6,2610.5,0.84505751]
[1751535508254,0.225783,2610.6,2610.5,1.03625751]
[1751535508840,0.225783,2610.6,2610.5,0.99795068]
[1751535509062,0.225783,2610.6,2610.5,1.03625751]
[1751535509281,0.225783,2610.6,2610.5,0.99795068]
[1751535512643,0.225783,2610.6,2610.5,1.03625751]
[1751535513281,0.225783,2610.6,2610.5,1.78745068]
[1751535514077,0.225783,2610.6,2610.5,5.61813445]
[1751535514378,0.225783,2610.6,2610.5,1.78745068]
[1751535514797,0.01,2611.7,2610.5,14.41545068]
[1751535515078,0.01,2611.7,2611.4,0.55]
[1751535515238,0.01,2611.7,2611.6,14.3790703]
[1751535515570,0.01,2611.7,2611.4,10.0]
[1751535515737,0.01,2611.7,2611.5,7.872]
[1751535515932,0.01,2611.7,2611.6,7.873]
[1751535516167,0.01,2611.7,2611.4,1.07895]
[1751535516366,0.01,2611.7,2611.5,7.91129216]
[1751535516571,0.01,2611.7,2611.0,1.3395]
[1751535516737,0.01,2611.7,2611.0,0.7895]
[1751535516939,0.01,2611.7,2611.1,7.875]
[1751535517356,3.82848392,2612.0,2611.1,7.875]
[1751535517535,4.57121809,2611.9,2611.1,7.875]
[1751535517753,0.74254711,2611.9,2611.1,7.875]
[1751535518176,4.5711818,2611.9,2611.1,7.875]
[1751535519059,0.74254711,2611.9,2610.8,1.07590509]
[1751535519258,11.00575104,2611.8,2610.8,3.95215329]
[1751535519473,3.82892805,2611.7,2610.8,0.7895]
[1751535519679,3.82892805,2611.7,2610.9,7.872]
[1751535519680,3.82898136,2611.7,2610.9,7.872]
[1751535520258,14.83460003,2611.8,2610.9,7.872]
[1751535520547,3.83893975,2611.7,2610.9,7.872]
[1751535521157,0.01,2611.7,2611.0,0.764]
[1751535521368,0.01,2611.7,2611.1,0.8636]
[1751535522245,0.01,2611.7,2611.3,10.764]
[1751535522445,0.01,2611.7,2611.4,7.91329363]
[1751535522643,0.01,2611.7,2611.4,7.875]
[1751535522841,0.01,2611.7,2611.5,1.24684995]
[1751535524881,0.01,2611.7,2611.6,8.0692]
[1751535526453,0.01,2611.7,2611.6,8.0642]
[1751535527051,0.01,2611.7,2611.6,0.1912]
[1751535527252,0.01,2611.7,2611.5,0.1912]
[1751535527450,0.01,2611.7,2610.8,1.944]
[1751535527746,3.82945754,2611.4,2611.1,0.1912]
[1751535528152,3.82945754,2611.4,2610.8,7.881]
[1751535529186,3.82926089,2611.5,2610.8,7.881]
[1751535529349,3.82944082,2611.4,2610.6,9.205]
[1751535529552,3.82944082,2611.4,2610.7,8.9949]
[1751535530585,3.82928297,2611.5,2610.7,8.9949]
[1751535530990,3.8291311,2611.6,2610.7,8.9949]
[1751535531290,0.01,2611.7,2610.7,8.9949]
[1751535531291,3.83893685,2611.7,2610.7,8.9949]
[1751535531502,3.82913987,2611.6,2610.7,1.1149]
[1751535531664,3.82939443,2611.4,2610.6,11.149]
[1751535531985,3.82939443,2611.4,2610.6,9.205]
[1751535532359,3.82939443,2611.4,2610.7,7.881]
[1751535532550,3.82939443,2611.4,2610.6,9.205]
[1751535532757,11.01575104,2611.7,2610.7,7.881]
[1751535532758,3.82928941,2611.5,2610.7,7.881]
[1751535533057,14.93071724,2611.6,2610.8,0.03830243]
[1751535533300,3.82922039,2611.5,2610.8,7.91830243]
[1751535533466,4.53991951,2611.5,2610.8,7.88]
[1751535533789,0.71069912,2611.5,2610.8,7.88]
[1751535534588,10.0,2611.6,2610.9,0.03830096]
[1751535534955,0.01,2611.7,2610.9,0.03830096]
[1751535535171,10.01,2611.7,2610.9,0.8285]
[1751535536393,10.0,2611.6,2610.9,0.8285]
[1751535536560,10.0,2611.6,2610.9,1.69935]
[1751535537682,13.82910791,2611.6,2610.9,0.87085]
[1751535537897,0.01,2611.7,2610.6,9.225]
[1751535537898,10.01,2611.7,2610.7,0.7738]
[1751535538186,0.1912,2611.3,2610.8,0.1912]
[1751535541704,0.1912,2611.3,2610.8,0.22950243]
[1751535542108,0.1912,2611.3,2610.8,0.1912]
[1751535544179,4.02074515,2611.3,2610.8,0.1912]
[1751535544498,11.00575104,2611.1,2610.8,0.1912]
[1751535544807,3.83039031,2610.7,2610.6,0.02]
[1751535544978,11.00575104,2610.7,2610.6,0.02]
[1751535545177,14.83614135,2610.7,2610.6,0.02]
[1751535546116,11.00575104,2610.7,2610.6,0.02]
[1751535547988,14.83614135,2610.7,2610.6,0.02]
[1751535548194,0.01,2612.1,2610.7,10.55]
[1751535548498,0.01,2612.1,2611.2,0.8139]
[1751535548699,0.01,2612.1,2611.3,10.0]
[1751535548904,11.01575104,2612.1,2611.3,10.0]
[1751535549114,14.84413036,2612.1,2611.2,0.8139]
[1751535549412,3.82869852,2611.9,2610.7,1.3267]
[1751535549594,3.82869852,2611.9,2610.8,8.015]
[1751535549595,11.01575104,2611.7,2610.8,8.015]
[1751535549777,11.00575104,2611.3,2610.6,0.02]
[1751535551085,14.83526345,2611.3,2610.6,0.02]
[1751535551306,14.8353322,2611.3,2610.6,0.02]
[1751535551517,14.83526375,2611.3,2610.6,0.02]
[1751535551907,14.83524392,2611.4,2610.6,0.02]
[1751535552220,3.82952698,2611.3,2610.6,0.02]
[1751535552378,14.83518882,2611.4,2610.6,0.02]
[1751535553215,1.944,2611.3,2610.6,0.02]
[1751535556131,11.944,2611.3,2610.6,0.02]
[1751535557923,1.944,2611.3,2610.6,0.02]
[1751535558302,0.1912,2611.0,2610.6,0.02]
[1751535558503,0.1912,2611.0,2610.6,0.05830537]
[1751535560689,0.1912,2611.0,2610.6,0.02]
[1751535561914,0.1912,2611.0,2610.6,0.05830537]
[1751535562612,0.1912,2611.0,2610.6,0.02]
[1751535569225,11.00575104,2611.1,2610.6,0.02]
[1751535569433,0.1912,2610.8,2610.6,0.02]
[1751535572709,0.1912,2611.0,2610.7,0.8192]
[1751535574942,0.1912,2610.8,2610.6,0.02]
[1751535581156,13.83003677,2611.0,2610.6,0.02]
[1751535582658,10.0,2610.8,2610.6,0.02]
[1751535582961,13.83002692,2611.0,2610.6,0.02]
[1751535584430,10.0,2611.0,2610.6,0.02]
[1751535586764,0.1912,2610.7,2610.6,0.02]
[1751535602602,0.1912,2610.7,2610.6,0.7897]
[1751535604052,0.1912,2610.7,2610.6,0.02]
[1751535609783,7.24430186,2610.7,2610.6,0.02]
[1751535610094,8.35174749,2610.7,2610.6,0.02]
[1751535612792,1.29864563,2610.7,2610.6,0.02]
[1751535613085,7.24430186,2610.7,2610.6,0.02]
[1751535614369,11.07469217,2610.7,2610.6,0.02]
[1751535614569,7.24430186,2610.7,2610.6,0.02]
[1751535622775,21.07469217,2610.7,2610.6,0.02]
[1751535622970,4.38053704,2610.6,2610.5,0.02]
[1751535623175,5.19703165,2610.6,2610.5,0.02]
[1751535623983,15.19703165,2610.6,2610.5,0.02]
[1751535624203,3.83171124,2609.8,2609.7,0.02]
[1751535624404,22.8328131,2609.8,2609.7,0.02]
[1751535624978,30.7148131,2609.8,2609.7,0.02]
[1751535625988,30.7028431,2609.8,2609.7,0.02]
[1751535626501,7.99,2609.9,2609.7,0.02]
[1751535626703,0.1912,2609.8,2609.7,0.7955]
[1751535627708,7.24430186,2609.8,2609.7,0.02]
[1751535627909,21.80044329,2609.8,2609.7,0.02]
[1751535628795,0.1912,2609.8,2609.7,0.02]
[1751535629184,4.02291124,2609.8,2609.7,0.02]
[1751535629395,14.02291124,2609.8,2609.7,0.02]
[1751535630208,14.57291124,2609.8,2609.7,0.02]
[1751535631800,10.1912,2609.8,2609.7,0.02]
[1751535632008,0.1912,2609.8,2609.7,0.02]
[1751535632392,0.1912,2609.9,2609.7,0.02]
[1751535632783,7.05310186,2610.6,2609.8,0.8221]
[1751535632984,0.1912,2610.4,2609.9,0.1912]
[1751535633184,0.1912,2610.4,2609.9,1.0133]
[1751535635810,7.05310186,2610.8,2610.1,0.7892]
[1751535636112,0.1912,2610.5,2610.1,0.9804]
[1751535640587,10.0,2611.0,2610.2,0.81571124]
[1751535640909,0.1912,2610.7,2610.4,0.7774]
[1751535642988,7.24430186,2610.7,2610.4,0.7774]
[1751535643189,7.05310186,2610.7,2610.4,0.7774]
[1751535643417,0.1912,2610.4,2609.8,0.7988]
[1751535643600,0.1912,2610.2,2609.8,0.7988]
[1751535645523,3.83010903,2610.9,2609.8,0.7988]
[1751535645524,7.05310186,2610.8,2609.8,0.791697]
[1751535645714,0.1912,2610.4,2609.9,0.22951564]
[1751535646621,0.1912,2610.4,2609.9,0.1912]
[1751535648227,7.06310186,2611.4,2610.2,3.83103598]
[1751535648549,0.1912,2610.9,2610.4,3.83075021]
[1751535648715,0.01,2611.4,2610.5,0.82210683]
[1751535649051,0.1912,2611.3,2610.9,0.7649]
[1751535649195,0.01,2611.4,2611.1,0.9561]
[1751535651336,0.01,2611.4,2611.1,0.7649]
[1751535651530,0.01,2611.4,2611.2,0.22949656]
[1751535653036,0.01,2611.4,2611.2,0.1912]
[1751535654339,0.2012,2611.4,2611.1,0.7649]
[1751535657829,0.2012,2611.4,2610.9,1.0216]
[1751535660442,0.01,2611.4,2611.2,0.1912]
[1751535661806,0.01,2611.4,2611.3,0.8273951]
[1751535662010,0.01,2611.4,2611.3,0.9803]
[1751535664446,0.01,2611.4,2611.3,1.88256392]
[1751535664850,0.01,2611.4,2611.3,5.71207412]
[1751535665046,0.01,2611.4,2611.3,1.88256392]
[1751535665728,0.01,2611.4,2611.3,5.71207412]
[1751535666410,0.01,2611.4,2611.3,1.88256392]
[1751535667329,0.01,2611.4,2611.3,0.9803]
[1751535667540,0.01,2611.4,2611.3,0.7891]
[1751535667741,0.01,2611.4,2611.2,0.1912]
[1751535668129,0.01,2611.4,2611.1,0.7921]
[1751535669051,0.01,2611.4,2611.0,0.1912]
[1751535669546,0.01,2611.4,2610.9,0.8302]
[1751535669547,0.1912,2611.3,2610.9,1.0214]
[1751535670214,0.01,2611.4,2611.0,0.0382995]
[1751535670414,0.01,2611.4,2611.2,0.1912]
[1751535670643,0.01,2611.4,2611.3,0.8151]
[1751535670846,0.01,2611.4,2611.3,1.0063]
[1751535672249,0.01,2611.4,2611.1,0.8293]
[1751535672445,0.01,2611.4,2610.5,10.8293]
[1751535672653,0.01,2611.4,2611.0,0.1912]
[1751535672835,0.01,2611.4,2611.0,1.0073]
[1751535674625,0.01,2611.4,2611.1,0.03829803]
[1751535674815,0.01,2611.4,2611.2,0.1912]
[1751535676068,0.01,2611.4,2611.3,0.7793]
[1751535676217,0.01,2611.4,2611.3,1.25932829]
[1751535677027,0.01,2611.4,2611.3,0.8175951]
[1751535677542,0.01,2611.4,2611.3,4.6471053]
[1751535677818,0.01,2611.4,2611.3,0.8175951]
[1751535678024,0.01,2611.4,2611.3,4.6471053]
[1751535678248,0.01,2611.4,2611.3,0.8175951]
[1751535678555,0.01,2611.4,2611.3,1.30143232]
[1751535679417,0.01,2611.4,2611.3,14.35164252]
[1751535679618,0.01,2611.4,2611.3,11.28713722]
[1751535679841,0.01,2611.4,2611.3,1.28713722]
[1751535680045,0.01,2611.4,2611.3,0.8033]
[1751535680441,0.01,2611.4,2611.3,0.8415951]
[1751535680825,0.01,2611.4,2611.3,0.8033]
[1751535681019,0.01,2611.4,2611.1,0.8248]
[1751535681221,0.01,2611.4,2611.2,1.08248]
[1751535681457,0.01,2611.4,2611.1,0.8248]
[1751535684054,0.01,2611.4,2610.8,10.29075629]
[1751535684255,0.01,2611.4,2610.8,0.7868]
[1751535685131,0.01,2611.4,2610.9,0.03830096]
[1751535686749,0.01,2611.4,2610.8,0.7868]
[1751535686958,0.01,2611.4,2610.7,10.0]
[1751535687144,0.01,2611.4,2610.7,11.45745828]
[1751535687860,0.01,2611.4,2610.8,0.03830243]
[1751535688062,0.01,2611.4,2610.7,11.45745828]
[1751535688243,0.01,2611.4,2610.8,0.03830243]
[1751535689329,0.01,2611.4,2610.7,11.45745828]
[1751535689529,0.01,2611.4,2610.7,1.45745828]
[1751535689941,0.1912,2611.3,2610.8,0.1912]
[1751535690260,0.01,2611.4,2610.9,0.03830096]
[1751535690462,0.01,2611.4,2611.0,0.1912]
[1751535692638,0.01,2611.4,2610.9,3.83000621]
[1751535692639,0.01,2611.4,2611.1,0.1912]
[1751535692859,0.01,2611.4,2610.9,0.7988]
[1751535693053,0.01,2611.4,2610.9,4.66716568]
[1751535693261,0.01,2611.4,2611.0,0.49575241]
[1751535693460,0.01,2611.4,2611.3,0.1912]
[1751535696290,0.01,2611.4,2611.3,4.7916102]
[1751535696507,0.01,2611.4,2611.3,17.09317679]
[1751535696648,0.01,2611.4,2611.3,14.7916102]
[1751535696850,0.01,2611.4,2611.3,18.92048623]
[1751535697550,0.1912,2612.1,2611.4,10.0]
[1751535698098,0.1912,2612.1,2611.6,0.1912]
[1751535699369,10.0,2612.7,2611.7,4.58890015]
[1751535699574,10.0,2612.7,2611.9,0.1912]
[1751535699575,0.1912,2612.4,2611.9,0.1912]
[1751535700269,0.225783,2613.2,2612.1,4.58835909]
[1751535700474,0.225783,2613.2,2612.2,5.33756072]
[1751535700681,0.225783,2613.2,2612.3,0.83248044]
[1751535700902,0.225783,2613.2,2612.3,2.30366023]
[1751535701066,0.225783,2613.2,2612.3,0.7942]
[1751535701268,0.225783,2613.2,2612.4,0.03827897]
[1751535701478,0.225783,2613.2,2612.6,3.82753849]
[1751535701679,0.225783,2613.2,2612.6,3.82756934]
[1751535701883,0.225783,2613.2,2612.7,0.03827458]
[1751535702198,0.225783,2613.2,2612.5,0.8211]
[1751535702886,0.225783,2613.2,2612.5,10.8211]
[1751535703113,0.225783,2613.2,2612.8,10.0]
[1751535703329,1.0,2614.0,2613.1,13.82686077]
[1751535703621,1.0,2614.0,2613.6,0.7869]
[1751535703784,1.0,2614.0,2613.9,3.82570105]
[1751535703986,2.4167,2615.0,2613.9,15.00324302]
[1751535704302,3.81828184,2616.0,2613.9,15.00324302]
[1751535704303,7.63542175,2616.4,2615.2,0.7604]
[1751535704628,3.82287975,2615.9,2614.8,0.03824384]
[1751535704774,10.99437622,2615.4,2614.0,0.7894]
[1751535704974,10.99437622,2614.6,2613.9,0.29425228]
[1751535705168,10.99437622,2614.2,2613.5,0.7894]
[1751535705404,10.99437622,2614.2,2613.3,1.12530242]
[1751535705405,10.99437622,2613.7,2613.6,0.89958953]
[1751535705610,0.8262,2613.6,2613.3,1.12530242]
[1751535705794,0.8262,2613.6,2613.5,2.26675183]
[1751535705974,0.8262,2613.6,2613.5,0.89976738]
[1751535706483,0.8262,2613.6,2613.3,1.12246696]
[1751535706684,12.00825762,2613.6,2613.1,1.12246696]
[1751535707007,10.99437622,2613.3,2613.0,1.12246696]
[1751535707205,10.99437622,2613.3,2612.8,1.12246696]
[1751535707376,11.76847622,2612.9,2612.8,1.12246696]
[1751535707574,11.76847622,2612.9,2612.7,1.12246696]
[1751535707779,0.7741,2612.9,2612.7,1.12246696]
[1751535708220,0.7741,2612.9,2612.3,1.12246696]
[1751535708395,0.7741,2612.9,2612.3,1.38437592]
[1751535708717,0.7741,2612.9,2612.3,0.26190896]
[1751535708918,0.7741,2612.9,2612.1,1.12246696]
[1751535709117,0.55,2612.8,2612.1,1.12246696]
[1751535709319,0.55,2612.8,2612.0,2.61908957]
[1751535709320,0.55,2612.5,2612.0,2.61908957]
[1751535709493,0.55,2612.3,2612.1,1.12246696]
[1751535709700,0.55,2612.3,2612.2,2.3946168]
[1751535709995,0.7979,2612.4,2612.2,0.89799419]
[1751535710208,0.7979,2612.4,2612.3,0.89799419]
[1751535710823,1.3479,2612.4,2612.3,2.39358182]
[1751535711122,0.8294,2612.0,2611.8,2.24291471]
[1751535711321,0.8294,2612.0,2611.7,2.24291471]
[1751535711322,0.1912,2611.8,2611.7,2.24291471]
[1751535711510,0.8294,2612.0,2611.5,2.24291471]
[1751535711908,8.21982353,2611.9,2611.5,2.24291471]
[1751535712114,0.1912,2611.5,2611.3,2.24291471]
[1751535712312,0.55,2611.8,2611.3,2.24291471]
[1751535712503,0.1912,2611.3,2611.2,2.24291471]
[1751535712705,0.55,2611.8,2611.0,2.24291471]
[1751535712905,0.1912,2611.1,2610.9,2.24291471]
[1751535713101,0.1912,2611.1,2611.0,0.24341147]
[1751535713495,8.82728611,2611.9,2611.0,0.24341147]
[1751535713695,0.1912,2611.3,2611.0,0.24341147]
[1751535714422,0.1912,2611.6,2611.1,0.1912]
[1751535714627,0.8294,2612.0,2611.1,0.03829803]
[1751535714824,0.1912,2611.9,2611.4,0.1912]
[1751535715523,3.82734679,2612.8,2611.0,4.61313668]
[1751535715524,0.8143,2613.3,2611.6,3.8290703]
[1751535715821,0.1912,2612.3,2611.8,4.83399399]
[1751535716024,1.1969535,2613.3,2611.9,0.0382863]
[1751535716210,1.1969535,2613.3,2612.1,3.82824434]
[1751535716211,0.8143,2613.3,2612.1,3.82824434]
[1751535716411,0.1912,2612.9,2612.4,0.1912]
[1751535717030,0.8143,2613.3,2612.3,3.82793944]
[1751535717236,0.1912,2613.1,2612.7,3.82739218]
[1751535717432,0.1912,2613.4,2612.9,0.1912]
[1751535717896,10.0,2613.7,2612.6,0.7573]
[1751535718094,0.1912,2613.2,2612.7,0.1912]
[1751535718339,1.2811979,2613.8,2612.8,0.03827311]
[1751535718642,0.1912,2613.3,2612.9,0.1912]
[1751535718843,0.7566,2613.9,2613.0,0.03827018]
[1751535719000,0.1912,2613.6,2613.1,0.1912]
[1751535719595,0.1912,2613.6,2613.1,4.01806064]
[1751535719796,0.01,2614.0,2613.2,0.03826725]
[1751535720033,0.01,2614.0,2613.2,3.86490661]
[1751535720326,0.01,2614.0,2613.3,10.7756]
[1751535720494,0.01,2614.0,2613.5,10.0]
[1751535721099,0.01,2614.0,2613.5,3.82627437]
[1751535721347,0.01,2614.0,2613.6,1.38262744]
[1751535721641,0.01,2614.0,2613.3,0.7756]
[1751535721938,0.01,2614.0,2613.3,10.7756]
[1751535722147,0.01,2614.0,2613.4,3.82633927]
[1751535722433,0.01,2614.0,2613.4,0.55]
[1751535722650,0.01,2614.0,2613.8,3.82572633]
[1751535722798,0.01,2614.0,2613.9,14.24653069]
[1751535723000,0.01,2614.0,2613.9,1.13977263]
[1751535723400,0.01,2614.0,2613.9,10.7572]
[1751535723644,0.01,2614.0,2613.9,0.7572]
[1751535723850,0.01,2614.0,2612.8,0.8311]
[1751535724009,0.01,2614.0,2612.9,0.58827165]
[1751535724330,0.01,2614.0,2613.8,0.8311]
[1751535725032,0.01,2614.0,2613.8,4.65693448]
[1751535725335,0.01,2614.0,2613.9,13.86395806]
[1751535725628,0.01,2614.0,2613.9,14.37570105]
[1751535725930,0.01,2614.0,2613.9,15.2741091]
[1751535726229,0.01,2614.9,2614.4,0.7924]
[1751535726429,0.01,2614.9,2614.7,3.82452825]
[1751535726629,0.01,2614.9,2614.4,0.7924]
[1751535726630,0.01,2614.9,2614.8,0.03824384]
[1751535726831,0.01,2614.9,2614.4,0.7924]
[1751535726998,0.01,2614.9,2614.5,0.03824823]
[1751535727200,0.01,2614.9,2614.6,10.0]
[1751535727401,0.01,2614.9,2614.7,0.0382453]
[1751535727652,0.01,2614.9,2614.4,0.7924]
[1751535728016,0.01,2614.9,2614.0,0.8068]
[1751535728310,0.01,2614.9,2614.1,0.89728757]
[1751535728510,0.01,2614.9,2614.2,0.89707354]
[1751535728826,0.01,2614.9,2614.3,1.99046152]
[1751535729005,0.01,2614.9,2614.4,0.89687879]
[1751535729204,0.01,2614.9,2614.5,0.89697462]
[1751535729534,0.01,2614.9,2614.0,0.8068]
[1751535729703,0.1912,2614.8,2614.3,0.1912]
[1751535729904,0.1912,2614.8,2614.4,0.8966622]
[1751535730229,0.1912,2614.8,2614.3,0.1912]
[1751535730745,0.01,2614.9,2614.6,0.1912]
[1751535730952,0.01,2614.9,2614.7,0.0382453]
[1751535731105,0.01,2614.9,2614.8,0.1912]
[1751535732149,0.01,2614.9,2614.8,0.70640273]
[1751535732947,0.01,2614.9,2614.8,15.42550372]
[1751535733153,0.01,2614.9,2614.8,15.93725988]
[1751535733334,0.01,2615.9,2615.1,0.55]
[1751535733536,0.01,2615.9,2615.1,4.37388039]
[1751535733712,0.01,2615.9,2615.7,0.1904]
[1751535735813,0.01,2615.9,2615.8,13.86115146]
[1751535736008,0.1904,2616.7,2615.9,10.0]
[1751535736009,0.1504,2616.7,2615.9,10.0]
[1751535736363,1.1413533,2616.8,2616.3,0.55]
[1751535736364,0.3206533,2616.8,2616.3,0.55]
[1751535736535,0.3206533,2616.8,2616.2,0.8209]
[1751535736705,0.3206533,2616.8,2616.3,1.63209]
[1751535736907,0.3206533,2616.8,2616.4,10.0]
[1751535737156,0.2706533,2616.8,2616.3,1.63209]
[1751535737305,0.2706533,2616.8,2616.7,0.7663]
[1751535737712,0.2706533,2616.8,2616.2,0.7663]
[1751535738326,0.2706533,2616.8,2615.8,0.7508]
[1751535738627,0.75770041,2616.8,2615.8,0.7508]
[1751535739131,0.2706533,2616.8,2615.9,0.03822776]
[1751535739453,0.2706533,2616.8,2615.7,0.55]
[1751535739768,0.2706533,2616.8,2615.5,4.61384164]
[1751535739769,0.2706533,2616.8,2615.6,10.0]
[1751535739967,4.09214944,2616.8,2615.7,1.07905]
[1751535740128,0.2706533,2616.8,2615.6,0.55]
[1751535740468,3.82163721,2616.7,2615.6,0.55]
[1751535740969,0.2706533,2616.8,2615.6,10.55]
[1751535741130,0.2706533,2616.8,2615.9,0.7891]